bitfinex-derivatives/quotes_BTCF0:USTF0_20241210
["timestamp","ask_amount","ask_price","bid_price","bid_amount"]
[1733847819561,0.12165448,95975.0,95969.0,0.36062811]
[1733847819763,0.12165448,95975.0,95974.0,0.052074]
[1733847819969,0.052081,95960.0,95959.0,0.00751005]
[1733847820267,0.7216,95964.0,95953.0,0.00010534]
[1733847820459,0.052084,95955.0,95953.0,0.00010534]
[1733847820657,0.3608,95964.0,95959.0,0.052081]
[1733847820658,0.05208,95962.0,95959.0,0.052081]
[1733847820872,0.01048507,95975.0,95954.0,0.052084]
[1733847820873,0.003,95975.0,95954.0,0.052084]
[1733847821062,0.052075,95971.0,95955.0,0.052084]
[1733847821259,0.052076,95970.0,95953.0,0.00010534]
[1733847821566,6e-05,95954.0,95953.0,0.00010534]
[1733847821760,0.352144,95954.0,95923.0,0.00748885]
[1733847821962,0.352144,95954.0,95912.0,0.00012]
[1733847821963,0.3608,95928.0,95912.0,0.00012]
[1733847822269,0.052106,95914.0,95912.0,0.00012]
[1733847822658,0.052111,95905.0,95901.0,0.052113]
[1733847822966,0.3608,95926.0,95904.0,0.3608]
[1733847823165,0.052104,95917.0,95916.0,0.3608]
[1733847823373,0.3608,95934.0,95904.0,0.3608]
[1733847823374,0.052107,95913.0,95912.0,0.009]
[1733847823776,0.052167,95913.0,95912.0,0.009]
[1733847823972,0.052167,95913.0,95907.0,0.05211]
[1733847824371,6e-05,95908.0,95907.0,0.05211]
[1733847825676,6e-05,95908.0,95904.0,0.36054411]
[1733847825972,0.3608,95923.0,95904.0,0.36054411]
[1733847826169,0.3608,95934.0,95904.0,0.36054411]
[1733847826170,0.3608,95934.0,95913.0,0.3608]
[1733847826364,0.02070136,95940.0,95928.0,0.3608]
[1733847826564,0.052091,95943.0,95935.0,0.052095]
[1733847826770,0.00056001,95953.0,95935.0,0.052215]
[1733847827074,0.052091,95942.0,95935.0,0.052215]
[1733847827467,0.052091,95942.0,95935.0,1.552215]
[1733847827668,0.052087,95949.0,95935.0,1.552215]
[1733847827866,0.4191,95969.0,95935.0,1.552215]
[1733847828071,0.052084,95954.0,95935.0,1.913015]
[1733847828577,0.00740988,95958.0,95935.0,1.913015]
[1733847828578,0.12647223,95936.0,95935.0,1.913015]
[1733847828779,0.13047223,95936.0,95935.0,1.86064911]
[1733847829171,0.12647223,95936.0,95935.0,1.86064911]
[1733847829369,0.12247223,95936.0,95935.0,0.007]
[1733847829675,0.48327223,95936.0,95935.0,0.007]
[1733847829979,0.052099,95927.0,95926.0,0.3608]
[1733847830177,0.412899,95927.0,95925.0,0.00741745]
[1733847830876,0.052105,95917.0,95915.0,0.00156399]
[1733847831083,0.3608,95927.0,95916.0,0.3608]
[1733847831271,0.12147223,95930.0,95916.0,0.3608]
[1733847831272,0.052098,95930.0,95916.0,0.3608]
[1733847831474,0.052098,95930.0,95929.0,0.052098]
[1733847831677,0.053094,95936.0,95935.0,0.003]
[1733847831877,0.052099,95927.0,95925.0,0.31155411]
[1733847832376,0.052099,95927.0,95925.0,0.36365411]
[1733847832877,0.052099,95927.0,95925.0,0.31155411]
[1733847833475,0.001,95936.0,95925.0,0.31155411]
[1733847833666,0.12147223,95941.0,95932.0,0.052096]
[1733847833667,0.052096,95933.0,95932.0,0.052096]
[1733847834075,0.052096,95933.0,95932.0,1.552096]
[1733847834794,0.052091,95941.0,95932.0,1.49972611]
[1733847834979,0.0521,95926.0,95925.0,0.31155411]
[1733847835278,0.052105,95917.0,95913.0,0.3608]
[1733847835481,0.052105,95917.0,95902.0,0.3608]
[1733847835680,6e-05,95916.0,95896.0,0.052116]
[1733847835886,0.052116,95896.0,95894.0,0.3608]
[1733847836176,0.052116,95896.0,95894.0,1.8608]
[1733847836177,6e-05,95895.0,95894.0,1.8608]
[1733847836375,6e-05,95895.0,95894.0,0.3608]
[1733847836775,6e-05,95895.0,95880.0,0.36236438]
[1733847836776,0.052124,95881.0,95880.0,0.36236438]
[1733847836977,0.412924,95881.0,95880.0,0.00156438]
[1733847837176,0.052129,95872.0,95871.0,0.30968024]
[1733847837476,0.3608,95895.0,95871.0,0.30968024]
[1733847837477,0.3608,95889.0,95871.0,0.30968024]
[1733847837675,0.052125,95879.0,95877.0,0.052126]
[1733847837887,0.3608,95880.0,95871.0,0.26499295]
[1733847838070,0.3608,95880.0,95879.0,0.052125]
[1733847838267,0.052125,95879.0,95870.0,9.199e-05]
[1733847838477,0.3608,95880.0,95879.0,0.052125]
[1733847838674,0.052122,95885.0,95870.0,9.199e-05]
[1733847838882,0.052122,95885.0,95879.0,0.00012]
[1733847839084,0.2608,95888.0,95879.0,0.00012]
[1733847839381,0.412925,95880.0,95879.0,0.00012]
[1733847839882,0.3608,95880.0,95879.0,0.00012]
[1733847840269,0.3608,95880.0,95879.0,0.00112]
[1733847840883,0.052132,95866.0,95865.0,0.32109949]
[1733847841076,0.3608,95869.0,95862.0,0.052134]
[1733847841271,0.3608,95869.0,95831.0,0.55609134]
[1733847841272,6e-05,95866.0,95858.0,0.00755393]
[1733847841483,6e-05,95866.0,95850.0,0.29057097]
[1733847841484,6e-05,95866.0,95865.0,0.052133]
[1733847841684,0.052129,95872.0,95868.0,0.052131]
[1733847841875,9.79e-05,95871.0,95866.0,0.052132]
[1733847842188,6e-05,95867.0,95866.0,0.052132]
[1733847843079,6e-05,95867.0,95866.0,0.004]
[1733847843389,0.052192,95867.0,95866.0,0.004]
[1733847843686,0.052192,95867.0,95843.0,0.00156524]
[1733847843687,0.052144,95845.0,95843.0,0.00924413]
[1733847843980,0.052149,95836.0,95835.0,0.052149]
[1733847844173,0.3608,95845.0,95837.0,0.052148]
[1733847844174,0.052147,95839.0,95837.0,0.052148]
[1733847844376,0.05215,95834.0,95833.0,0.00742898]
[1733847844578,0.3608,95860.0,95838.0,0.00012]
[1733847844877,0.3608,95860.0,95859.0,0.00012]
[1733847845086,0.412935,95860.0,95859.0,0.00012]
[1733847845381,0.3608,95860.0,95859.0,0.00012]
[1733847845571,0.001,95867.0,95859.0,0.00012]
[1733847845776,0.052135,95861.0,95859.0,1.50012]
[1733847845982,0.052135,95861.0,95843.0,0.007]
[1733847846281,6e-05,95844.0,95843.0,0.052145]
[1733847846484,6e-05,95844.0,95843.0,1.552145]
[1733847846983,0.3608,95875.0,95853.0,0.052139]
[1733847847285,0.3608,95875.0,95856.0,0.3608]
[1733847847882,0.001,95861.0,95860.0,0.052135]
[1733847848282,0.001,95861.0,95854.0,0.052819]
[1733847848486,0.001,95861.0,95854.0,0.052139]
[1733847848686,6e-05,95855.0,95854.0,0.052139]
[1733847849677,0.052198,95855.0,95847.0,0.052142]
[1733847849877,0.3608,95849.0,95843.0,1.50364]
[1733847850188,0.052132,95866.0,95856.0,0.005]
[1733847850378,0.052132,95866.0,95861.0,0.052135]
[1733847850684,0.3608,95868.0,95866.0,0.052132]
[1733847850888,0.3608,95868.0,95865.0,0.00012]
[1733847850889,0.052132,95866.0,95865.0,0.00012]
[1733847851087,0.3608,95868.0,95867.0,0.00012]
[1733847851477,0.0010979,95871.0,95867.0,0.00012]
[1733847851677,0.0010979,95871.0,95870.0,0.05213]
[1733847851876,0.0010979,95871.0,95870.0,0.00012]
[1733847852389,9.79e-05,95871.0,95870.0,0.00012]
[1733847852785,9.79e-05,95871.0,95870.0,0.05425]
[1733847853087,0.0010979,95871.0,95870.0,0.00188411]
[1733847853276,0.4140269,95871.0,95870.0,0.00188411]
[1733847853781,0.4130269,95871.0,95870.0,0.001]
[1733847853983,0.3608979,95871.0,95870.0,1.501]
[1733847854682,9.79e-05,95871.0,95870.0,1.50899362]
[1733847854883,9.79e-05,95871.0,95870.0,0.001]
[1733847855087,0.3608979,95871.0,95870.0,0.001]
[1733847855684,0.052135,95861.0,95860.0,1.5]
[1733847855880,0.412935,95861.0,95858.0,0.0080425]
[1733847856082,0.3608,95861.0,95842.0,0.052145]
[1733847856291,0.052139,95854.0,95852.0,0.05214]
[1733847856478,0.3608,95861.0,95843.0,1.5]
[1733847856680,0.052137,95858.0,95843.0,1.52117954]
[1733847856876,6e-05,95844.0,95843.0,1.57332454]
[1733847857889,9.79e-05,95871.0,95844.0,0.052144]
[1733847858192,0.3608,95863.0,95843.0,1.52181954]
[1733847858386,0.3608,95863.0,95861.0,0.052135]
[1733847858591,0.412934,95863.0,95861.0,0.052135]
[1733847858792,0.3608,95863.0,95843.0,1.52417954]
[1733847858996,0.3608,95854.0,95852.0,0.05214]
[1733847859295,0.3608,95854.0,95843.0,1.503]
[1733847859296,0.05214,95852.0,95849.0,0.052141]
[1733847859491,0.05214,95851.0,95849.0,0.052141]
[1733847859680,6e-05,95850.0,95849.0,0.052141]
[1733847861196,6e-05,95850.0,95834.0,0.4161]
[1733847861489,0.052141,95850.0,95848.0,0.052142]
[1733847861688,0.001,95850.0,95849.0,0.006]
[1733847862193,0.001,95850.0,95845.0,0.3608]
[1733847862391,0.001,95850.0,95848.0,0.052142]
[1733847863081,0.001,95852.0,95848.0,0.052142]
[1733847863287,0.001,95852.0,95851.0,0.05214]
[1733847863488,0.052133,95865.0,95864.0,0.052133]
[1733847863688,0.12179396,95871.0,95860.0,0.052135]
[1733847863884,0.052133,95865.0,95864.0,0.00012]
[1733847864088,0.12179396,95871.0,95870.0,0.05225]
[1733847864492,9.79e-05,95871.0,95870.0,0.05225]
[1733847865085,0.3608979,95871.0,95870.0,0.00012]
[1733847865395,0.3608979,95871.0,95820.0,0.29057097]
[1733847865396,0.05214,95852.0,95848.0,0.052142]
[1733847865690,0.3608,95849.0,95848.0,0.052142]
[1733847866201,0.052146,95840.0,95838.0,0.052147]
[1733847866406,0.3608,95839.0,95838.0,0.052147]
[1733847866696,0.36086,95839.0,95838.0,0.052147]
[1733847866889,0.052149,95836.0,95834.0,0.00834247]
[1733847867193,6e-05,95835.0,95834.0,0.052149]
[1733847867590,0.12262244,95846.0,95842.0,0.052145]
[1733847867804,0.12262244,95846.0,95845.0,0.052144]
[1733847867990,0.12262244,95846.0,95845.0,1.552264]
[1733847868301,0.12262244,95855.0,95845.0,1.49989811]
[1733847868503,0.12262244,95854.0,95845.0,1.49989811]
[1733847868890,0.12262244,95854.0,95850.0,0.052141]
[1733847868891,0.052142,95851.0,95850.0,0.052141]
[1733847869097,0.48342244,95854.0,95853.0,0.052139]
[1733847869292,0.052142,95849.0,95848.0,0.052142]
[1733847869791,0.052202,95849.0,95848.0,0.052142]
[1733847870899,0.052143,95846.0,95845.0,1.49989811]
[1733847871100,0.28568344,95846.0,95845.0,1.49989811]
[1733847871403,0.052148,95836.0,95835.0,0.00823048]
[1733847871592,0.052148,95836.0,95834.0,0.052149]
[1733847871593,0.412948,95836.0,95834.0,0.052149]
[1733847871796,0.412948,95836.0,95823.0,0.05225428]
[1733847871797,0.052152,95829.0,95823.0,0.05225428]
[1733847871997,0.052155,95824.0,95823.0,9.928e-05]
[1733847872398,0.10288133,95824.0,95823.0,9.928e-05]
[1733847872802,0.10294133,95824.0,95823.0,9.928e-05]
[1733847873399,0.052215,95824.0,95823.0,9.928e-05]
[1733847874405,0.052159,95817.0,95816.0,0.00072]
[1733847874698,0.052159,95817.0,95815.0,0.00985455]
[1733847874699,0.413019,95817.0,95815.0,0.00985455]
[1733847875006,6e-05,95816.0,95815.0,0.00985455]
[1733847875396,6e-05,95816.0,95815.0,0.00156541]
[1733847875795,6e-05,95816.0,95813.0,0.247953]
[1733847875796,0.05216,95815.0,95813.0,0.247953]
[1733847876293,6e-05,95814.0,95803.0,1.50064]
[1733847876499,0.412966,95804.0,95790.0,0.052173]
[1733847876805,0.00014777,95803.0,95785.0,0.48667702]
[1733847876990,0.00014777,95803.0,95786.0,1.552176]
[1733847877189,0.00014777,95803.0,95789.0,0.052174]
[1733847877393,0.052167,95802.0,95800.0,0.04787594]
[1733847877806,6e-05,95801.0,95800.0,0.04787594]
[1733847878206,0.052176,95786.0,95785.0,0.00156612]
[1733847878399,0.773776,95786.0,95756.0,0.3608]
[1733847878595,0.052179,95780.0,95761.0,1.5]
[1733847878904,0.052189,95762.0,95761.0,1.5]
[1733847879207,0.052189,95762.0,95746.0,0.3608]
[1733847879208,0.052195,95750.0,95748.0,0.008123]
[1733847879502,6e-05,95749.0,95746.0,0.3608]
[1733847879815,0.0522,95742.0,95741.0,0.00156639]
[1733847880307,0.05236013,95742.0,95741.0,0.00156639]
[1733847880495,0.00016013,95742.0,95727.0,0.37450347]
[1733847880694,0.052206,95730.0,95727.0,0.37450347]
[1733847880900,0.052267,95728.0,95727.0,0.37450347]
[1733847882001,6e-05,95728.0,95727.0,0.37450347]
[1733847882201,6e-05,95728.0,95727.0,0.42671147]
[1733847882395,0.36135001,95733.0,95731.0,0.052206]
[1733847882593,0.001,95728.0,95722.0,0.05221]
[1733847882798,0.001,95728.0,95720.0,0.0082624]
[1733847883109,6e-05,95723.0,95721.0,0.052211]
[1733847883603,6e-05,95723.0,95720.0,0.3608]
[1733847883998,6e-05,95721.0,95720.0,0.413012]
[1733847884692,6e-05,95721.0,95720.0,1.913012]
[1733847885408,0.001,95728.0,95727.0,0.052208]
[1733847885595,0.00010013,95742.0,95741.0,0.0522]
[1733847885801,1.3e-07,95742.0,95741.0,0.0522]
[1733847886097,0.1214966,95760.0,95748.0,0.052196]
[1733847886302,0.1214966,95760.0,95748.0,0.412996]
[1733847886604,0.1214966,95760.0,95748.0,0.36099194]
[1733847886907,0.00018449,95749.0,95748.0,1.86092]
[1733847887111,0.1214966,95760.0,95759.0,0.05219]
[1733847887302,0.15188556,95770.0,95759.0,0.41299]
[1733847887496,0.15188556,95770.0,95769.0,0.052185]
[1733847887701,0.15188556,95770.0,95769.0,0.052305]
[1733847888110,0.15198194,95770.0,95769.0,0.052305]
[1733847889298,9.638e-05,95770.0,95769.0,0.052305]
[1733847889704,9.638e-05,95770.0,95769.0,0.00012]
[1733847889900,9.638e-05,95770.0,95769.0,0.052305]
[1733847890101,0.00109638,95770.0,95769.0,0.053305]
[1733847890298,0.00109638,95770.0,95769.0,0.06163417]
[1733847890522,0.00109638,95770.0,95749.0,0.3608]
[1733847890804,0.00109638,95770.0,95769.0,0.001]
[1733847891710,0.00209638,95770.0,95769.0,0.001]
[1733847892698,0.00209638,95770.0,95768.0,0.3608]
[1733847893008,0.00209638,95770.0,95768.0,0.412985]
[1733847893307,0.00109638,95770.0,95768.0,0.052185]
[1733847893507,9.638e-05,95770.0,95768.0,0.052185]
[1733847893811,0.00109638,95770.0,95768.0,0.052185]
[1733847894206,0.00109638,95770.0,95769.0,1.5]
[1733847895103,0.36189638,95770.0,95748.0,0.3608]
[1733847895303,0.052193,95755.0,95754.0,0.052193]
[1733847895503,0.052201,95741.0,95740.0,0.0522]
[1733847895708,0.3608,95756.0,95754.0,0.052193]
[1733847896004,0.412992,95756.0,95755.0,0.00012]
[1733847897627,0.413992,95756.0,95755.0,0.00012]
[1733847897803,0.414992,95756.0,95755.0,0.00012]
[1733847898508,0.3628,95756.0,95755.0,0.00012]
[1733847898703,0.002,95756.0,95755.0,0.052313]
[1733847898904,0.002,95756.0,95755.0,0.052193]
[1733847899717,0.004,95756.0,95755.0,0.052193]
[1733847899910,0.003,95756.0,95755.0,0.052193]
[1733847900315,0.052189,95761.0,95747.0,0.3608]
[1733847900515,0.3608,95768.0,95750.0,0.29057097]
[1733847900717,9.638e-05,95770.0,95769.0,0.052185]
[1733847901107,9.638e-05,95770.0,95769.0,0.052305]
[1733847902018,0.36089638,95770.0,95752.0,0.00808001]
[1733847902331,0.412993,95757.0,95756.0,0.052192]
[1733847902507,0.052203,95737.0,95728.0,0.052207]
[1733847902813,8.342e-05,95736.0,95728.0,0.00072]
[1733847903019,8.342e-05,95736.0,95735.0,0.06200252]
[1733847903412,0.00014342,95736.0,95735.0,0.42280252]
[1733847903811,0.00014342,95736.0,95735.0,0.06200252]
[1733847904920,0.00114342,95736.0,95735.0,1.50823197]
[1733847905118,0.00114342,95736.0,95735.0,1.56043597]
[1733847905816,0.00114342,95736.0,95735.0,1.50823197]
[1733847906221,0.00114342,95736.0,95735.0,1.51023197]
[1733847906813,0.00114342,95736.0,95735.0,1.50823197]
[1733847907014,0.00114342,95736.0,95735.0,1.51023197]
[1733847907925,0.00114342,95736.0,95735.0,0.002]
[1733847908132,0.00114342,95736.0,95735.0,0.01008927]
[1733847908425,0.00114342,95736.0,95735.0,0.002]
[1733847908426,0.36194342,95736.0,95735.0,0.002]
[1733847909119,0.36194342,95736.0,95735.0,1.502]
[1733847910221,0.00114342,95736.0,95735.0,1.554204]
[1733847911019,4.2e-07,95736.0,95735.0,1.86287994]
[1733847911222,0.18229724,95752.0,95751.0,0.052195]
[1733847911424,0.18229724,95752.0,95751.0,0.763915]
[1733847911723,0.18229724,95752.0,95751.0,0.764035]
[1733847911927,0.18229724,95752.0,95751.0,2.264035]
[1733847912120,0.18235404,95752.0,95751.0,2.264035]
[1733847912518,0.18435404,95752.0,95751.0,2.264035]
[1733847913021,0.18435404,95752.0,95751.0,1.85911271]
[1733847913220,0.18435404,95752.0,95751.0,0.00012]
[1733847913427,0.18435404,95752.0,95723.0,0.05221]
[1733847913428,0.052195,95751.0,95723.0,0.05221]
[1733847913721,0.3608,95735.0,95733.0,0.052205]
[1733847913921,0.61900622,95752.0,95748.0,7.194e-05]
[1733847913922,0.18229724,95749.0,95748.0,7.194e-05]
[1733847914110,0.18229724,95749.0,95748.0,0.052196]
[1733847914312,0.18229724,95749.0,95748.0,0.052316]
[1733847914713,0.18229724,95749.0,95748.0,1.552316]
[1733847914918,0.18229724,95749.0,95748.0,1.56104001]
[1733847915118,0.18229724,95749.0,95748.0,1.50884401]
[1733847915522,0.18229724,95749.0,95748.0,0.00012]
[1733847915523,0.54309724,95749.0,95748.0,0.00012]
[1733847916231,0.54309724,95749.0,95748.0,0.052316]
[1733847916418,0.18229724,95749.0,95748.0,0.052316]
[1733847917022,0.18229724,95749.0,95742.0,0.00863352]
[1733847917226,0.18329724,95749.0,95748.0,0.052196]
[1733847917927,0.18429724,95749.0,95748.0,1.552196]
[1733847918922,0.001,95749.0,95748.0,1.552196]
[1733847919829,0.002,95749.0,95748.0,1.552196]
[1733847920030,0.002,95749.0,95743.0,0.3608]
[1733847920422,6e-05,95744.0,95743.0,0.412999]
[1733847921125,8e-07,95752.0,95743.0,0.712999]
[1733847921327,8e-07,95752.0,95751.0,0.412995]
[1733847921532,0.02806404,95770.0,95769.0,0.052185]
[1733847921736,0.21296811,95776.0,95775.0,0.052182]
[1733847921923,0.10089511,95776.0,95775.0,0.052182]
[1733847922239,0.00060001,95815.0,95811.0,0.052162]
[1733847922426,0.62819317,95824.0,95811.0,0.052162]
[1733847922632,0.62755317,95824.0,95813.0,0.052161]
[1733847923020,0.57539817,95824.0,95823.0,0.00012]
[1733847923227,0.052156,95822.0,95811.0,0.00012]
[1733847923427,0.57539817,95824.0,95811.0,0.00012]
[1733847923428,0.052157,95821.0,95813.0,0.052161]
[1733847923923,0.58295818,95824.0,95821.0,0.052157]
[1733847924129,0.58239817,95824.0,95817.0,0.3608]
[1733847924326,0.59139817,95824.0,95823.0,0.00012]
[1733847925336,0.58439817,95824.0,95823.0,0.00012]
[1733847925532,0.57539817,95824.0,95823.0,0.00012]
[1733847925742,0.57639817,95824.0,95823.0,1.50112]
[1733847925929,0.93719817,95824.0,95823.0,0.00112]
[1733847926123,0.052159,95818.0,95811.0,0.052162]
[1733847926324,0.98995318,95824.0,95823.0,0.001]
[1733847926626,0.98995318,95824.0,95796.0,0.3608]
[1733847926627,0.052171,95794.0,95790.0,9.284e-05]
[1733847926830,0.052176,95786.0,95783.0,0.35084]
[1733847927030,0.052176,95785.0,95783.0,0.35084]
[1733847927227,0.3608,95787.0,95767.0,0.3608]
[1733847927228,6e-05,95784.0,95772.0,0.00853364]
[1733847927435,6e-05,95784.0,95780.0,0.3608]
[1733847927735,0.3608,95798.0,95796.0,0.05217]
[1733847927939,0.052162,95811.0,95803.0,0.052166]
[1733847928139,8.841e-05,95810.0,95793.0,0.3508]
[1733847928529,0.05225141,95810.0,95802.0,0.052167]
[1733847928931,0.05225141,95810.0,95800.0,0.3608]
[1733847929127,0.05225141,95810.0,95793.0,0.29867594]
[1733847929441,8.841e-05,95810.0,95809.0,0.3608]
[1733847929640,8.841e-05,95810.0,95809.0,0.412963]
[1733847930747,0.36088841,95810.0,95802.0,0.001]
[1733847931042,0.05217,95797.0,95793.0,0.00845433]
[1733847931232,0.3608,95795.0,95788.0,0.35076]
[1733847931535,0.3608,95809.0,95790.0,0.3608]
[1733847931727,0.00108841,95810.0,95809.0,0.052163]
[1733847932237,0.00108841,95810.0,95808.0,0.00012]
[1733847932432,0.05325141,95810.0,95808.0,0.00012]
[1733847932632,0.00108841,95810.0,95808.0,0.00012]
[1733847932939,0.00108841,95810.0,95809.0,0.052163]
[1733847933144,0.4283,95845.0,95818.0,0.052158]
[1733847933333,0.052141,95850.0,95840.0,0.052146]
[1733847933537,0.052144,95846.0,95844.0,0.00012]
[1733847933841,0.3608,95848.0,95831.0,0.35076]
[1733847933842,0.052145,95843.0,95836.0,0.052148]
[1733847934027,0.052145,95843.0,95831.0,0.35076]
[1733847934230,6e-05,95837.0,95832.0,1.5]
[1733847935244,6e-05,95837.0,95836.0,0.052148]
[1733847936245,6e-05,95837.0,95836.0,1.552148]
[1733847936432,6e-05,95837.0,95836.0,0.052148]
[1733847936634,0.052149,95835.0,95831.0,0.3592697]
[1733847936933,0.05215,95833.0,95831.0,0.3592697]
[1733847937135,0.05215,95833.0,95831.0,0.4114207]
[1733847937531,6e-05,95832.0,95831.0,0.4114207]
[1733847937741,0.3608,95858.0,95857.0,0.052137]
[1733847937933,0.052129,95872.0,95849.0,0.3608]
[1733847938128,0.3608,95878.0,95852.0,0.052139]
[1733847938336,0.3608,95878.0,95849.0,0.3608]
[1733847938337,0.3608,95878.0,95876.0,2.94e-06]
[1733847938541,0.3608,95878.0,95877.0,0.00012]
[1733847938934,0.41292,95889.0,95877.0,0.00012]
[1733847939335,0.41292,95889.0,95888.0,0.00012]
[1733847939636,0.052116,95896.0,95888.0,0.00012]
[1733847939857,0.3921,95899.0,95888.0,0.00012]
[1733847940029,0.3921,95899.0,95889.0,0.052119]
[1733847940030,0.052117,95894.0,95889.0,0.052119]
[1733847940234,0.1,95900.0,95890.0,0.3608]
[1733847940435,0.1,95900.0,95898.0,0.052114]
[1733847940742,0.1,95900.0,95899.0,0.00012]
[1733847941239,0.4608,95900.0,95899.0,0.00012]
[1733847941545,0.052119,95891.0,95890.0,0.00839625]
[1733847941740,0.052119,95891.0,95875.0,0.35068]
[1733847941741,0.3608,95891.0,95875.0,0.35068]
[1733847941941,0.052126,95878.0,95875.0,0.35068]
[1733847942135,0.052126,95878.0,95876.0,0.05212994]
[1733847942339,0.3608,95891.0,95890.0,0.052119]
[1733847942535,0.018,95894.0,95890.0,0.052119]
[1733847942737,0.002,95891.0,95890.0,0.00012]
[1733847942944,0.002,95891.0,95890.0,0.052119]
[1733847943440,0.009,95894.0,95881.0,0.29057097]
[1733847943745,0.1,95900.0,95899.0,0.052114]
[1733847943936,0.3608,95926.0,95906.0,0.05211]
[1733847944337,0.3608,95926.0,95899.0,1.86154594]
[1733847944537,0.3608,95926.0,95899.0,1.86090594]
[1733847945450,0.3608,95926.0,95914.0,0.052106]
[1733847945648,0.052104,95919.0,95914.0,0.052106]
[1733847945841,0.004,95908.0,95906.0,0.05211]
[1733847946049,0.004,95908.0,95899.0,0.00012]
[1733847946050,0.012,95908.0,95899.0,0.00012]
[1733847946351,6e-05,95907.0,95905.0,0.052111]
[1733847946534,0.012,95908.0,95907.0,0.05211]
[1733847946535,0.008,95908.0,95907.0,0.05211]
[1733847946742,0.3678,95926.0,95925.0,0.0521]
[1733847947147,0.3678,95926.0,95925.0,1.5521]
[1733847947365,0.3678,95926.0,95925.0,1.49997594]
[1733847947750,0.3678,95926.0,95925.0,1.56051484]
[1733847947939,0.007,95926.0,95925.0,1.92131484]
[1733847948253,0.3608,95942.0,95936.0,0.052094]
[1733847948442,0.00064,95946.0,95945.0,0.052089]
[1733847948655,0.3608,95966.0,95941.0,0.00012]
[1733847948656,0.052079,95964.0,95941.0,0.00012]
[1733847948948,0.3608,95966.0,95963.0,0.00012]
[1733847949142,0.052078,95965.0,95963.0,0.00012]
[1733847949451,0.052078,95965.0,95957.0,0.052082]
[1733847949452,0.052081,95960.0,95957.0,0.052012]
[1733847949650,0.3608,95958.0,95945.0,1.5]
[1733847949847,0.052089,95947.0,95945.0,1.5]
[1733847950555,0.3608,95948.0,95923.0,0.31747895]
[1733847950844,6e-05,95924.0,95923.0,0.31747895]
[1733847951240,0.007,95926.0,95924.0,0.052101]
[1733847951546,7.367e-05,95925.0,95924.0,0.052101]
[1733847952246,7.367e-05,95925.0,95924.0,0.40767345]
[1733847952644,0.00107367,95925.0,95924.0,0.40767345]
[1733847952845,0.006,95958.0,95937.0,0.052093]
[1733847953041,0.006,95958.0,95947.0,0.3608]
[1733847953344,0.006,95958.0,95957.0,0.00012]
[1733847953540,0.006,95958.0,95947.0,0.3608]
[1733847953735,4.975e-05,95957.0,95956.0,0.052083]
[1733847954137,4.975e-05,95957.0,95956.0,1.552083]
[1733847955249,0.00704975,95957.0,95956.0,1.553083]
[1733847955449,0.00704975,95957.0,95956.0,0.053083]
[1733847956149,0.37584975,95957.0,95956.0,0.001]
[1733847956456,0.37584975,95957.0,95956.0,0.00976045]
[1733847956752,0.052087,95949.0,95933.0,0.35032]
[1733847956953,0.01504975,95957.0,95949.0,0.052087]
[1733847957149,0.3608,95953.0,95951.0,0.052086]
[1733847957453,0.052087,95950.0,95947.0,0.052088]
[1733847957756,0.052087,95949.0,95947.0,0.052088]
[1733847958253,0.055087,95949.0,95947.0,0.052088]
[1733847958655,0.05209,95944.0,95940.0,0.052092]
[1733847958946,0.05209,95944.0,95936.0,0.3608]
[1733847959147,0.05209,95944.0,95933.0,0.00859708]
[1733847959355,0.013,95949.0,95948.0,0.052088]
[1733847959545,0.013,95949.0,95947.0,0.00096394]
[1733847959748,0.013,95949.0,95948.0,0.052088]
[1733847960755,0.007,95949.0,95948.0,0.052088]
[1733847961055,0.004,95944.0,95939.0,0.29057097]
[1733847961246,0.004,95944.0,95943.0,0.05209]
[1733847961858,0.05209,95944.0,95943.0,0.05209]
[1733847962043,0.013,95949.0,95939.0,0.00869799]
[1733847962247,0.3608,95942.0,95929.0,0.35028]
[1733847962446,0.052097,95931.0,95930.0,0.052097]
[1733847962645,0.052097,95931.0,95929.0,0.30696828]
[1733847963059,6e-05,95930.0,95924.0,0.00521245]
[1733847963251,0.4129,95925.0,95924.0,0.00521245]
[1733847963455,0.41296,95925.0,95924.0,0.00521245]
[1733847963847,6e-05,95925.0,95924.0,0.00521245]
[1733847964042,6e-05,95925.0,95924.0,1.552101]
[1733847964354,6e-05,95925.0,95924.0,1.56051012]
[1733847964856,0.00106,95925.0,95924.0,1.50840912]
[1733847965753,0.00106,95925.0,95924.0,0.00840912]
[1733847965947,0.00106,95925.0,95920.0,0.00012237]
[1733847966256,0.001,95925.0,95924.0,0.052101]
[1733847966656,0.3618,95925.0,95924.0,1.5]
[1733847966854,0.4139,95925.0,95924.0,1.5]
[1733847967052,0.4129,95925.0,95924.0,1.5]
[1733847967258,0.4129,95925.0,95920.0,0.00012237]
[1733847967259,0.052102,95921.0,95920.0,0.00012237]
[1733847968157,0.052102,95921.0,95904.0,0.00156416]
[1733847968158,0.052111,95905.0,95904.0,0.00156416]
[1733847968353,0.052114,95900.0,95888.0,0.0083957]
[1733847968556,0.052114,95900.0,95889.0,1.5]
[1733847968761,0.052122,95884.0,95883.0,0.052123]
[1733847969062,0.052125,95879.0,95868.0,0.35024]
[1733847969562,6e-05,95878.0,95876.0,0.05212894]
[1733847969853,6e-05,95878.0,95876.0,2.94e-06]
[1733847970756,0.052137,95857.0,95856.0,8.751e-05]
[1733847971258,0.052197,95857.0,95856.0,8.751e-05]
[1733847971758,6e-05,95857.0,95831.0,0.4316]
[1733847971959,0.3608,95851.0,95831.0,0.4316]
[1733847972260,0.3608,95851.0,95841.0,0.41110806]
[1733847972261,6e-05,95842.0,95841.0,0.41110806]
[1733847972657,0.36086,95842.0,95841.0,0.35896206]
[1733847972853,0.36094518,95842.0,95841.0,0.35896206]
[1733847973049,0.36094518,95842.0,95841.0,0.35028]